fUSD/lending_fUSD_20240905
["ID","MTS","AMOUNT","RATE_DAILY","PERIOD"]
[337212836,1725501056683,-500.0,0.00014983,2]
[337212837,1725501056692,-500.0,0.00014983,2]
[337212838,1725501056701,-500.0,0.00014983,2]
[337212839,1725501056711,-500.0,0.00014983,2]
[337212840,1725501056721,-875.37,0.00014983,2]
[337212841,1725501056734,-875.37,0.00014983,2]
[337212842,1725501056743,-875.37,0.00014983,2]
[337212843,1725501056752,-625.54,0.00014983,2]
[337212844,1725501056761,-625.54,0.00014983,2]
[337212845,1725501056771,-625.54,0.00014983,2]
[337212846,1725501056780,-743.54,0.00014983,2]
[337212847,1725501056789,-743.54,0.00014983,2]
[337212848,1725501056798,-743.54,0.00014983,2]
[337212849,1725501056807,-1846.82,0.00014983,2]
[337212850,1725501056816,-1846.82,0.00014983,2]
[337212851,1725501056826,-1846.82,0.00014983,2]
[337212852,1725501056838,-500.0,0.00014983,2]
[337212853,1725501056848,-500.0,0.00014983,2]
[337212854,1725501056858,-388.04752577,0.00014983,2]
[337212855,1725501056869,-1087.48,0.00014983,2]
[337212856,1725501056882,-1087.48,0.00014983,2]
[337212857,1725501056892,-1087.48,0.00014983,2]
[337212858,1725501056903,-500.0,0.00014983,2]
[337212859,1725501056912,-500.0,0.00014983,2]
[337212860,1725501056923,-492.30762007,0.00014983,2]
[337212861,1725501056932,-846.52,0.00014983,2]
[337212862,1725501056941,-846.52,0.00014983,2]
[337212863,1725501056951,-846.52,0.00014983,2]
[337212864,1725501056960,-961.98,0.00014983,2]
[337212865,1725501056972,-961.98,0.00014983,2]
[337212866,1725501056981,-961.98,0.00014983,2]
[337212867,1725501056992,-1844.78,0.00014983,2]
[337212868,1725501057001,-1844.78,0.00014983,2]
[337212869,1725501057012,-1844.78,0.00014983,2]
[337212870,1725501057023,-1108.75,0.00014983,2]
[337212871,1725501057034,-1108.75,0.00014983,2]
[337212872,1725501057046,-1108.75,0.00014983,2]
[337212873,1725501057055,-2656.38,0.00014983,2]
[337212874,1725501057065,-2656.38,0.00014983,2]
[337212875,1725501057074,-2656.38,0.00014983,2]
[337212876,1725501057083,-812.89,0.00014983,2]
[337212877,1725501057092,-812.89,0.00014983,2]
[337212878,1725501057102,-812.89,0.00014983,2]
[337212879,1725501057111,-500.0,0.00014983,2]
[337212880,1725501057122,-222.82397127,0.00014983,2]
[337212881,1725501057132,-518.7,0.00014983,2]
[337212882,1725501057142,-518.7,0.00014983,2]
[337212883,1725501057151,-764.18,0.00014983,2]
[337212884,1725501057160,-764.18,0.00014983,2]
[337212885,1725501057170,-764.18,0.00014983,2]
[337212886,1725501057179,-500.0,0.00014983,2]
[337212887,1725501057188,-500.0,0.00014983,2]
[337212888,1725501057199,-500.0,0.00014983,2]
[337212889,1725501057209,-2466.34,0.00014983,2]
[337212890,1725501057220,-2466.34,0.00014983,2]
[337212891,1725501057229,-2466.34,0.00014983,2]
[337212892,1725501057238,-1065.97,0.00014983,2]
[337212893,1725501057247,-1065.97,0.00014983,2]
[337212894,1725501057259,-3080.79,0.00014983,2]
[337212895,1725501057269,-3080.79,0.00014983,2]
[337212896,1725501057279,-3080.79,0.00014983,2]
[337212897,1725501057288,-500.0,0.00014983,2]
[337212898,1725501057297,-500.0,0.00014983,2]
[337212899,1725501057307,-500.0,0.00014983,2]
[337212900,1725501057316,-500.0,0.00014983,2]
[337212901,1725501057325,-500.0,0.00014983,2]
[337212902,1725501057335,-500.0,0.00014983,2]
[337212903,1725501057344,-1138.67,0.00014983,2]
[337212904,1725501057355,-1138.67,0.00014983,2]
[337212905,1725501057364,-1138.67,0.00014983,2]
[337212906,1725501057373,-837.31,0.00014983,2]
[337212907,1725501057383,-837.31,0.00014983,2]
[337212908,1725501057392,-811.05,0.00014983,2]
[337212909,1725501057402,-811.05,0.00014983,2]
[337212910,1725501057411,-811.05,0.00014983,2]
[337212911,1725501057420,-1327.1,0.00014983,2]
[337212912,1725501057430,-1327.1,0.00014983,2]
[337212913,1725501057440,-1327.1,0.00014983,2]
[337212914,1725501057449,-691.73,0.00014983,2]
[337212915,1725501057459,-691.73,0.00014983,2]
[337212916,1725501057468,-691.73,0.00014983,2]
[337212917,1725501057478,-1036.16,0.00014983,2]
[337212918,1725501057488,-1036.16,0.00014983,2]
[337212919,1725501057497,-1036.16,0.00014983,2]
[337212920,1725501057507,-622.99,0.00014983,2]
[337212921,1725501057516,-622.99,0.00014983,2]
[337212922,1725501057525,-622.99,0.00014983,2]
[337212923,1725501057534,-500.0,0.00014983,2]
[337212924,1725501057543,-500.0,0.00014983,2]
[337212925,1725501057552,-500.0,0.00014983,2]
[337212926,1725501057562,-500.0,0.00014983,2]
[337212927,1725501057572,-500.0,0.00014983,2]
[337212928,1725501057581,-315.09978198,0.00014983,2]
[337212929,1725501057594,-602.40680609,0.00014983,2]
[337212930,1725501057605,-1354.44,0.00014983,2]
[337212931,1725501057615,-1354.44,0.00014983,2]
[337212932,1725501057626,-1354.44,0.00014983,2]
[337212933,1725501057636,-680.76,0.00014983,2]
[337212934,1725501057647,-680.76,0.00014983,2]
[337212935,1725501057657,-680.76,0.00014983,2]
[337212936,1725501057666,-958.36,0.00014983,2]
[337212937,1725501057677,-958.36,0.00014983,2]
[337212938,1725501057688,-958.36,0.00014983,2]
[337212939,1725501057699,-500.0,0.00014983,2]
[337212940,1725501057710,-500.0,0.00014983,2]
[337212941,1725501057719,-500.0,0.00014983,2]
[337212942,1725501057729,-1518.49,0.00014983,2]
[337212943,1725501057739,-1518.49,0.00014983,2]
[337212944,1725501057747,-1518.49,0.00014983,2]
[337212945,1725501057756,-1118.3,0.00014983,2]
[337212946,1725501057766,-1118.3,0.00014983,2]
[337212947,1725501057775,-1118.3,0.00014983,2]
[337212948,1725501057784,-500.0,0.00014983,2]
[337212949,1725501057795,-500.0,0.00014983,2]
[337212950,1725501057806,-500.0,0.00014983,2]
[337212951,1725501057815,-636.1,0.00014983,2]
[337212952,1725501057824,-636.1,0.00014983,2]
[337212953,1725501057833,-636.1,0.00014983,2]
[337212954,1725501057844,-500.0,0.00014983,2]
[337212955,1725501057854,-500.0,0.00014983,2]
[337212956,1725501057864,-500.0,0.00014983,2]
[337212957,1725501057875,-889.54,0.00014983,2]
[337212958,1725501057884,-889.54,0.00014983,2]
[337212959,1725501057895,-889.54,0.00014983,2]
[337212960,1725501057904,-500.0,0.00014983,2]
[337212961,1725501057914,-500.0,0.00014983,2]
[337212962,1725501057923,-210.48796089,0.00014983,2]
[337212963,1725501057932,-582.39,0.00014983,2]
[337212964,1725501057942,-582.39,0.00014983,2]
[337212965,1725501057951,-582.39,0.00014983,2]
[337212966,1725501057960,-500.94,0.00014983,2]
[337212967,1725501057971,-500.94,0.00014983,2]
[337212968,1725501057981,-500.94,0.00014983,2]
[337212969,1725501057993,-624.44,0.00014983,2]
[337212970,1725501058004,-624.44,0.00014983,2]
[337212971,1725501058015,-624.44,0.00014983,2]
[337212972,1725501058024,-500.0,0.00014983,2]
[337212973,1725501058035,-151.0,0.00014983,2]
[337212974,1725501058044,-151.0,0.00014983,2]
[337212975,1725501058054,-151.0,0.00014983,2]
[337212976,1725501058063,-2026.89,0.00014984,2]
[337212977,1725501058072,-2026.89,0.00014984,2]
[337212978,1725501058081,-2026.89,0.00014984,2]
[337212979,1725501058090,-1474.2,0.00014984,2]
[337212980,1725501058099,-1474.2,0.00014984,2]
[337212981,1725501058108,-1474.2,0.00014984,2]
[337212982,1725501058118,-628.04,0.00014984,2]
[337212983,1725501058128,-405.62690226,0.00014984,2]
[337212984,1725501058138,-997.26,0.00014984,2]
[337212985,1725501058147,-997.26,0.00014984,2]
[337212986,1725501058157,-997.26,0.00014984,2]
[337212987,1725501058166,-500.0,0.00014984,2]
[337212988,1725501058175,-500.0,0.00014984,2]
[337212989,1725501058184,-500.0,0.00014984,2]
[337212990,1725501058194,-260.71579623,0.00014984,2]
[337212991,1725501058203,-500.0,0.00014984,2]
[337212992,1725501058211,-1311.39,0.00014984,2]
[337212993,1725501058221,-1311.39,0.00014984,2]
[337212994,1725501058230,-3153.18,0.00014984,2]
[337212995,1725501058240,-3153.18,0.00014984,2]
[337212996,1725501058249,-3153.18,0.00014984,2]
[337212997,1725501058258,-663.6,0.00014984,2]
[337212998,1725501058267,-663.6,0.00014984,2]
[337212999,1725501058277,-663.6,0.00014984,2]
[337213000,1725501058286,-940.12,0.00014984,2]
[337213001,1725501058295,-940.12,0.00014984,2]
[337213002,1725501058303,-940.12,0.00014984,2]
[337213003,1725501058314,-566.94,0.00014984,2]
[337213004,1725501058324,-566.94,0.00014984,2]
[337213005,1725501058335,-566.94,0.00014984,2]
[337213006,1725501058346,-3245.99,0.00014984,2]
[337213007,1725501058356,-3245.99,0.00014984,2]
[337213008,1725501058366,-3245.99,0.00014984,2]
[337213009,1725501058376,-695.26,0.00014984,2]
[337213010,1725501058386,-695.26,0.00014984,2]
[337213011,1725501058396,-695.26,0.00014984,2]
[337213012,1725501058405,-500.0,0.00014984,2]
[337213013,1725501058415,-534.68,0.00014984,2]
[337213014,1725501058426,-534.68,0.00014984,2]
[337213015,1725501058436,-534.68,0.00014984,2]
[337213016,1725501058445,-500.0,0.00014984,2]
[337213017,1725501058455,-500.0,0.00014984,2]
[337213018,1725501058464,-647.28821281,0.00014984,2]
[337213019,1725501058472,-500.0,0.00014984,2]
[337213020,1725501058483,-500.0,0.00014984,2]
[337213021,1725501058492,-500.0,0.00014984,2]
[337213022,1725501058503,-164.62011601,0.00014984,2]
[337213023,1725501058512,-500.0,0.00014984,2]
[337213024,1725501058522,-808.39,0.00014984,2]
[337213025,1725501058532,-1289.87,0.00014984,2]
[337213026,1725501058544,-1289.87,0.00014984,2]
[337213027,1725501058554,-1289.87,0.00014984,2]
[337213028,1725501058563,-500.0,0.00014984,2]
[337213029,1725501058573,-500.0,0.00014984,2]
[337213030,1725501058582,-324.13356154,0.00014984,2]
[337213031,1725501058591,-500.0,0.00014984,2]
[337213032,1725501058603,-363.7238967,0.00014984,2]
[337213033,1725501058614,-875.37,0.00014984,2]
[337213034,1725501058624,-875.37,0.00014984,2]
[337213035,1725501058634,-875.37,0.00014984,2]
[337213036,1725501058643,-625.54,0.00014984,2]
[337213037,1725501058652,-625.54,0.00014984,2]
[337213038,1725501058662,-625.54,0.00014984,2]
[337213039,1725501058672,-743.54,0.00014984,2]
[337213040,1725501058683,-743.54,0.00014984,2]
[337213041,1725501058694,-743.54,0.00014984,2]
[337213042,1725501058703,-1846.82,0.00014984,2]
[337213043,1725501058713,-1846.82,0.00014984,2]
[337213044,1725501058722,-1846.82,0.00014984,2]
[337213045,1725501058731,-500.0,0.00014984,2]
[337213046,1725501058740,-1087.48,0.00014984,2]
[337213047,1725501058749,-1087.48,0.00014984,2]
[337213048,1725501058758,-1087.48,0.00014984,2]
[337213049,1725501058767,-846.52,0.00014984,2]
[337213050,1725501058776,-846.52,0.00014984,2]
[337213051,1725501058785,-846.52,0.00014984,2]
[337213052,1725501058794,-961.98,0.00014984,2]
[337213053,1725501058803,-961.98,0.00014984,2]
[337213054,1725501058812,-961.98,0.00014984,2]
[337213055,1725501058822,-1844.78,0.00014984,2]
[337213056,1725501058831,-1844.78,0.00014984,2]
[337213057,1725501058841,-1844.78,0.00014984,2]
[337213058,1725501058850,-1108.75,0.00014984,2]
[337213059,1725501058859,-1108.75,0.00014984,2]
[337213060,1725501058869,-1108.75,0.00014984,2]
[337213061,1725501058879,-500.0,0.00014984,2]
[337213062,1725501058888,-443.2072211,0.00014984,2]
[337213063,1725501058897,-2656.38,0.00014984,2]
[337213064,1725501058909,-759.98,0.00014984,2]
[337213065,1725501058919,-2656.38,0.00014984,2]
[337213066,1725501058928,-2656.38,0.00014984,2]
[337213067,1725501058937,-500.0,0.00014984,2]
[337213068,1725501058947,-812.89,0.00014984,2]
[337213069,1725501058956,-812.89,0.00014984,2]
[337213070,1725501058966,-812.89,0.00014984,2]
[337213071,1725501058979,-301.04161761,0.00014984,2]
[337213072,1725501058989,-500.0,0.00014984,2]
[337213073,1725501058999,-500.0,0.00014984,2]
[337213074,1725501059009,-500.0,0.00014984,2]
[337213075,1725501059019,-4524.09,0.00014984,2]
[337213076,1725501059028,-518.7,0.00014984,2]
[337213077,1725501059037,-518.7,0.00014984,2]
[337213078,1725501059048,-518.7,0.00014984,2]
[337213079,1725501059057,-764.18,0.00014984,2]
[337213080,1725501059067,-764.18,0.00014984,2]
[337213081,1725501059076,-764.18,0.00014984,2]
[337213082,1725501059085,-1178.57,0.00014984,2]
[337213083,1725501059093,-500.0,0.00014984,2]
[337213084,1725501059102,-500.0,0.00014984,2]
[337213085,1725501059112,-500.0,0.00014984,2]
[337213086,1725501059121,-2466.34,0.00014984,2]
[337213087,1725501059130,-2466.34,0.00014984,2]
[337213088,1725501059139,-2466.34,0.00014984,2]
[337213089,1725501059150,-3654.15,0.00014984,2]
[337213090,1725501059160,-1065.97,0.00014984,2]
[337213091,1725501059170,-1065.97,0.00014984,2]
[337213092,1725501059179,-1065.97,0.00014984,2]
[337213093,1725501059188,-3080.79,0.00014984,2]
[337213094,1725501059198,-3080.79,0.00014984,2]
[337213095,1725501059207,-3080.79,0.00014984,2]
[337213096,1725501059215,-935.21,0.00014984,2]
[337213097,1725501059225,-500.0,0.00014984,2]
[337213098,1725501059234,-500.0,0.00014984,2]
[337213099,1725501059243,-500.0,0.00014984,2]
[337213100,1725501059251,-500.0,0.00014984,2]
[337213101,1725501059260,-500.0,0.00014984,2]
[337213102,1725501059269,-500.0,0.00014984,2]
[337213103,1725501059278,-1138.67,0.00014984,2]
[337213104,1725501059287,-1138.67,0.00014984,2]
[337213105,1725501059296,-1138.67,0.00014984,2]
[337213106,1725501059305,-837.31,0.00014984,2]
[337213107,1725501059314,-837.31,0.00014984,2]
[337213108,1725501059323,-837.31,0.00014984,2]
[337213109,1725501059332,-811.05,0.00014984,2]
[337213110,1725501059342,-811.05,0.00014984,2]
[337213111,1725501059351,-811.05,0.00014984,2]
[337213112,1725501059359,-1327.1,0.00014984,2]
[337213113,1725501059369,-1327.1,0.00014984,2]
[337213114,1725501059378,-1327.1,0.00014984,2]
[337213115,1725501059387,-691.73,0.00014984,2]
[337213116,1725501059396,-691.73,0.00014984,2]
[337213117,1725501059412,-691.73,0.00014984,2]
[337213118,1725501059421,-1036.16,0.00014984,2]
[337213119,1725501059430,-1036.16,0.00014984,2]
[337213120,1725501059439,-1036.16,0.00014984,2]
[337213121,1725501059448,-500.0,0.00014984,2]
[337213122,1725501059457,-622.99,0.00014984,2]
[337213123,1725501059466,-622.99,0.00014984,2]
[337213124,1725501059475,-622.99,0.00014984,2]
[337213125,1725501059484,-333.62031554,0.00014984,2]
[337213126,1725501059493,-1021.79,0.00014984,2]
[337213127,1725501059502,-500.0,0.00014984,2]
[337213128,1725501059511,-208.25883432,0.00014984,2]
[337213129,1725501059519,-504.40359659,0.00014984,2]
[337213130,1725501059530,-922.89,0.00014984,2]
[337213131,1725501059540,-1354.44,0.00014984,2]
[337213132,1725501059549,-1354.44,0.00014984,2]
[337213133,1725501059558,-1354.44,0.00014984,2]
[337213134,1725501059567,-754.77,0.00014984,2]
[337213135,1725501059576,-1514.09,0.00014984,2]
[337213136,1725501059585,-680.76,0.00014984,2]
[337213137,1725501059594,-680.76,0.00014984,2]
[337213138,1725501059603,-680.76,0.00014984,2]
[337213139,1725501059612,-958.36,0.00014984,2]
[337213140,1725501059621,-958.36,0.00014984,2]
[337213141,1725501059630,-958.36,0.00014984,2]
[337213142,1725501059638,-500.0,0.00014984,2]
[337213143,1725501059649,-500.0,0.00014984,2]
[337213144,1725501059658,-500.0,0.00014984,2]
[337213145,1725501059667,-3075.33,0.00014984,2]
[337213146,1725501059676,-500.0,0.00014984,2]
[337213147,1725501059686,-1807.0,0.00014984,2]
[337213148,1725501059695,-2541.07,0.00014984,2]
[337213149,1725501059704,-500.0,0.00014984,2]
[337213150,1725501059713,-1518.49,0.00014984,2]
[337213151,1725501059721,-1518.49,0.00014984,2]
[337213152,1725501059732,-1518.49,0.00014984,2]
[337213153,1725501059741,-1162.24,0.00014984,2]
[337213154,1725501059750,-591.92,0.00014984,2]
[337213155,1725501059759,-1118.3,0.00014984,2]
[337213156,1725501059768,-1118.3,0.00014984,2]
[337213157,1725501059778,-1118.3,0.00014984,2]
[337213158,1725501059787,-151.0,0.00014984,2]
[337213159,1725501059796,-546.34,0.00014984,2]
[337213160,1725501059805,-552.38,0.00014984,2]
[337213161,1725501059815,-500.0,0.00014984,2]
[337213162,1725501059824,-500.0,0.00014984,2]
[337213163,1725501059834,-183.14836691,0.00014984,2]
[337213164,1725501059843,-1927.03,0.00014984,2]
[337213165,1725501059852,-636.1,0.00014984,2]
[337213166,1725501059862,-588.03,0.00014984,2]
[337213167,1725501059871,-636.1,0.00014984,2]
[337213168,1725501059881,-636.1,0.00014984,2]
[337213169,1725501059891,-500.0,0.00014984,2]
[337213170,1725501059900,-1053.46,0.00014984,2]
[337213171,1725501059910,-500.0,0.00014984,2]
[337213172,1725501059919,-273.27438847,0.00014984,2]
[337213173,1725501059929,-500.0,0.00014984,2]
[337213174,1725501059939,-889.54,0.00014984,2]
[337213175,1725501059948,-889.54,0.00014984,2]
[337213176,1725501059957,-889.54,0.00014984,2]
[337213177,1725501059966,-500.0,0.00014984,2]
[337213178,1725501059978,-500.0,0.00014984,2]
[337213179,1725501059988,-573.64,0.00014984,2]
[337213180,1725501059997,-582.39,0.00014984,2]
[337213181,1725501060007,-582.39,0.00014984,2]
[337213182,1725501060017,-582.39,0.00014984,2]
[337213183,1725501060131,-2719.8,0.00014984,2]
[337213184,1725501060140,-500.94,0.00014984,2]
[337213185,1725501060150,-500.94,0.00014984,2]
[337213186,1725501060159,-500.94,0.00014984,2]
[337213187,1725501060168,-153.763596,0.00014984,2]
[337213188,1725501060179,-500.0,0.00014984,2]
[337213189,1725501060187,-624.44,0.00014984,2]
[337213190,1725501060197,-624.44,0.00014984,2]
[337213191,1725501060206,-624.44,0.00014984,2]
[337213192,1725501060216,-500.0,0.00014984,2]
[337213193,1725501060226,-500.0,0.00014984,2]
[337213194,1725501060235,-500.0,0.00014984,2]
[337213195,1725501060245,-500.0,0.00014984,2]
[337213196,1725501060254,-500.0,0.00014984,2]
[337213197,1725501060263,-500.0,0.00014984,2]
[337213198,1725501060273,-846.14,0.00014984,2]
[337213199,1725501060282,-500.0,0.00014984,2]
[337213200,1725501060291,-989.47,0.00014984,2]
[337213201,1725501060300,-1269.37,0.00014984,2]
[337213202,1725501060310,-151.0,0.00014984,2]
[337213203,1725501060320,-500.0,0.00014984,2]
[337213204,1725501060329,-151.0,0.00014984,2]
[337213205,1725501060339,-500.0,0.00014984,2]
[337213206,1725501060349,-1302.95,0.00014984,2]
[337213207,1725501060358,-151.0,0.00014984,2]
[337213208,1725501060367,-735.55,0.00014984,2]
[337213209,1725501060376,-759.75,0.00014984,2]
[337213210,1725501060386,-264.86500636,0.00014984,2]
[337213211,1725501060395,-392.95487446,0.00014984,2]
[337213212,1725501060405,-1391.46,0.00014984,2]
[337213213,1725501060415,-500.0,0.00014984,2]
[337213214,1725501060424,-545.5,0.00014984,2]
[337213215,1725501060434,-1426.67,0.00014984,2]
[337213216,1725501060443,-518.55,0.00014984,2]
[337213217,1725501060452,-330.64068583,0.00014984,2]
[337213218,1725501060462,-500.0,0.00014984,2]
[337213219,1725501060471,-646.65,0.00014984,2]
[337213220,1725501060484,-500.0,0.00014984,2]
[337213221,1725501060496,-500.0,0.00014984,2]
[337213222,1725501060506,-1109.58485009,0.00014985,2]
[337213223,1725501060517,-1419.26,0.00014985,2]
[337213224,1725501060527,-1419.26,0.00014985,2]
[337213225,1725501060538,-1419.26,0.00014985,2]
[337213226,1725501060548,-1419.49730798,0.00014985,2]
[337213227,1725501060558,-2026.89,0.00014985,2]
[337213228,1725501060567,-2026.89,0.00014985,2]
[337213229,1725501060577,-2026.89,0.00014985,2]
[337213230,1725501060586,-2026.89,0.00014985,2]
[337213231,1725501060596,-2026.89,0.00014985,2]
[337213232,1725501060606,-2027.12895858,0.00014985,2]
[337213233,1725501060617,-1474.2,0.00014985,2]
[337213234,1725501060630,-1474.2,0.00014985,2]
[337213235,1725501060640,-1474.2,0.00014985,2]
[337213236,1725501060651,-1474.2,0.00014985,2]
[337213237,1725501060660,-1474.2,0.00014985,2]
[337213238,1725501060669,-1474.43275515,0.00014985,2]
[337213239,1725501060679,-628.04,0.00014985,2]
[337213240,1725501060690,-628.04,0.00014985,2]
[337213241,1725501060700,-628.04,0.00014985,2]
[337213242,1725501060710,-997.26,0.00014985,2]
[337213243,1725501060720,-997.26,0.00014985,2]
[337213244,1725501060730,-997.26,0.00014985,2]
[337213245,1725501060739,-997.26,0.00014985,2]
[337213246,1725501060750,-997.26,0.00014985,2]
[337213247,1725501060760,-997.29133032,0.00014985,2]
[337213248,1725501060770,-500.0,0.00014985,2]
[337213249,1725501060780,-500.0,0.00014985,2]
[337213250,1725501060788,-235.32260872,0.00014985,2]
[337213251,1725501060798,-1311.39,0.00014985,2]
[337213252,1725501060807,-1311.39,0.00014985,2]
[337213253,1725501060816,-1311.39,0.00014985,2]
[337213254,1725501060825,-1311.39,0.00014985,2]
[337213255,1725501060835,-3153.18,0.00014985,2]
[337213256,1725501060844,-3153.18,0.00014985,2]
[337213257,1725501060854,-663.6,0.00014985,2]
[337213258,1725501060863,-3153.18,0.00014985,2]
[337213259,1725501060872,-3153.18,0.00014985,2]
[337213260,1725501060881,-663.6,0.00014985,2]
[337213261,1725501060890,-3153.18,0.00014985,2]
[337213262,1725501060900,-663.6,0.00014985,2]
[337213263,1725501060909,-663.6,0.00014985,2]
[337213264,1725501060919,-3153.18,0.00014985,2]
[337213265,1725501060928,-3153.20755331,0.00014985,2]
[337213266,1725501060938,-663.6,0.00014985,2]
[337213267,1725501060947,-663.7166774,0.00014985,2]
[337213268,1725501060956,-940.12,0.00014985,2]
[337213269,1725501060967,-940.12,0.00014985,2]
[337213270,1725501060979,-940.12,0.00014985,2]
[337213271,1725501060988,-940.12,0.00014985,2]
[337213272,1725501060997,-940.12,0.00014985,2]
[337213273,1725501061006,-940.12,0.00014985,2]
[337213274,1725501061017,-940.3040547,0.00014985,2]
[337213275,1725501061027,-566.94,0.00014985,2]
[337213276,1725501061036,-566.94,0.00014985,2]
[337213277,1725501061046,-566.94,0.00014985,2]
[337213278,1725501061055,-566.94,0.00014985,2]
[337213279,1725501061064,-566.94,0.00014985,2]
[337213280,1725501061074,-566.94,0.00014985,2]
[337213281,1725501061084,-566.94790921,0.00014985,2]
[337213282,1725501061093,-3245.99,0.00014985,2]
[337213283,1725501061103,-3245.99,0.00014985,2]
[337213284,1725501061112,-3245.99,0.00014985,2]
[337213285,1725501061124,-3245.99,0.00014985,2]
[337213286,1725501061134,-3245.99,0.00014985,2]
[337213287,1725501061143,-3246.15748523,0.00014985,2]
[337213288,1725501061153,-695.26,0.00014985,2]
[337213289,1725501061162,-695.26,0.00014985,2]
[337213290,1725501061172,-695.26,0.00014985,2]
[337213291,1725501061181,-695.26,0.00014985,2]
[337213292,1725501061190,-695.26,0.00014985,2]
[337213293,1725501061200,-695.45657709,0.00014985,2]
[337213294,1725501061210,-534.68,0.00014985,2]
[337213295,1725501061219,-534.68,0.00014985,2]
[337213296,1725501061228,-534.68,0.00014985,2]
[337213297,1725501061238,-534.68,0.00014985,2]
[337213298,1725501061247,-534.68,0.00014985,2]
[337213299,1725501061256,-534.68,0.00014985,2]
[337213300,1725501061265,-534.7600828,0.00014985,2]
[337213301,1725501061275,-500.0,0.00014985,2]
[337213302,1725501061284,-500.0,0.00014985,2]
[337213303,1725501061294,-493.32994694,0.00014985,2]
[337213304,1725501061304,-1289.87,0.00014985,2]
[337213305,1725501061314,-1289.87,0.00014985,2]
[337213306,1725501061325,-1289.87,0.00014985,2]
[337213307,1725501061334,-1289.87,0.00014985,2]
[337213308,1725501061343,-1289.87,0.00014985,2]
[337213309,1725501061354,-1290.02900307,0.00014985,2]
[337213310,1725501061363,-875.37,0.00014985,2]
[337213311,1725501061374,-875.37,0.00014985,2]
[337213312,1725501061383,-875.37,0.00014985,2]
[337213313,1725501061393,-875.37,0.00014985,2]
[337213314,1725501061403,-875.37,0.00014985,2]
[337213315,1725501061412,-875.45570906,0.00014985,2]
[337213316,1725501061422,-625.54,0.00014985,2]
[337213317,1725501061431,-625.54,0.00014985,2]
[337213318,1725501061441,-625.54,0.00014985,2]
[337213319,1725501061451,-625.54,0.00014985,2]
[337213320,1725501061461,-625.54,0.00014985,2]
[337213321,1725501061470,-625.76935643,0.00014985,2]
[337213322,1725501061480,-743.54,0.00014985,2]
[337213323,1725501061490,-743.54,0.00014985,2]
[337213324,1725501061499,-743.54,0.00014985,2]
[337213325,1725501061509,-743.54,0.00014985,2]
[337213326,1725501061519,-743.54,0.00014985,2]
[337213327,1725501061528,-743.554597,0.00014985,2]
[337213328,1725501061537,-1846.82,0.00014985,2]
[337213329,1725501061546,-1846.82,0.00014985,2]
[337213330,1725501061555,-1846.82,0.00014985,2]
[337213331,1725501061565,-1846.82,0.00014985,2]
[337213332,1725501061575,-1846.82,0.00014985,2]
[337213333,1725501061584,-1846.88232867,0.00014985,2]
[337213334,1725501061594,-1087.48,0.00014985,2]
[337213335,1725501061603,-1087.48,0.00014985,2]